fUST/lending_fUST_20250609
["ID","MTS","AMOUNT","RATE_DAILY","PERIOD"]
[365019173,1749403833962,-572.52,0.00019997,2]
[365019174,1749403833973,-440.0,0.00019997,2]
[365019175,1749403833983,-440.0,0.00019997,2]
[365019176,1749403833993,-546.18,0.00019997,2]
[365019177,1749403834004,-547.52,0.00019997,2]
[365019178,1749403834013,-440.0,0.00019997,2]
[365019179,1749403834024,-440.0,0.00019997,2]
[365019180,1749403834034,-440.0,0.00019998,2]
[365019181,1749403834043,-440.0,0.00019998,2]
[365019182,1749403834054,-440.0,0.00019998,2]
[365019183,1749403834064,-440.0,0.00019998,2]
[365019184,1749403834075,-440.0,0.00019998,2]
[365019185,1749403834084,-440.0,0.00019998,2]
[365019186,1749403834094,-440.0,0.00019998,2]
[365019187,1749403834104,-746.72,0.00019998,2]
[365019188,1749403834114,-440.0,0.00019998,2]
[365019189,1749403834124,-4941.08,0.00019998,2]
[365019190,1749403834134,-440.0,0.00019998,2]
[365019191,1749403834145,-440.0,0.00019998,2]
[365019192,1749403834155,-527.96,0.00019998,2]
[365019193,1749403834164,-440.0,0.00019998,2]
[365019194,1749403834174,-440.0,0.00019998,2]
[365019195,1749403834194,-440.0,0.00019998,2]
[365019196,1749403834207,-440.0,0.00019998,2]
[365019197,1749403834218,-440.0,0.00019998,2]
[365019198,1749403834228,-440.0,0.00019998,2]
[365019199,1749403834238,-627.3,0.00019998,2]
[365019200,1749403834248,-440.0,0.00019998,2]
[365019201,1749403834257,-440.0,0.00019998,2]
[365019202,1749403834268,-440.0,0.00019998,2]
[365019203,1749403834277,-440.0,0.00019998,2]
[365019204,1749403834287,-507.9,0.00019999,2]
[365019205,1749403834297,-440.0,0.00019999,2]
[365019206,1749403834309,-400.160729,0.00019999,2]
[365019207,1749403834319,-440.0,0.00019999,2]
[365019208,1749403834329,-440.0,0.00019999,2]
[365019209,1749403834340,-500.0,0.00020114,2]
[365019210,1749403834350,-160.0,0.00020147,2]
[365019211,1749403834360,-176.08211658,0.00020255,2]
[365019212,1749403834371,-460.99,0.00020271,2]
[365019213,1749403834380,-460.57,0.00020271,2]
[365019214,1749403834391,-785.9,0.00020271,2]
[365019215,1749403834401,-572.52,0.00020271,2]
[365019216,1749403834411,-546.18,0.00020271,2]
[365019217,1749403834422,-547.52,0.00020271,2]
[365019218,1749403834432,-440.0,0.00020271,2]
[365019219,1749403834442,-440.0,0.00020271,2]
[365019220,1749403834452,-440.0,0.00020272,2]
[365019221,1749403834462,-440.0,0.00020272,2]
[365019222,1749403834472,-440.0,0.00020272,2]
[365019223,1749403834482,-746.72,0.00020272,2]
[365019224,1749403834493,-4941.08,0.00020272,2]
[365019225,1749403834503,-440.0,0.00020272,2]
[365019226,1749403834515,-440.0,0.00020272,2]
[365019227,1749403834527,-440.0,0.00020272,2]
[365019228,1749403834537,-293.17,0.00020272,2]
[365019229,1749403834546,-440.0,0.00020272,2]
[365019230,1749403834557,-627.3,0.00020272,2]
[365019231,1749403834567,-440.0,0.00020272,2]
[365019232,1749403834577,-440.0,0.00020272,2]
[365019233,1749403834587,-440.0,0.00020272,2]
[365019234,1749403834598,-493.59,0.00020355,2]
[365019235,1749403834608,-460.99,0.00020545,2]
[365019236,1749403834618,-460.57,0.00020545,2]
[365019237,1749403834628,-785.9,0.00020545,2]
[365019238,1749403834638,-572.52,0.00020545,2]
[365019239,1749403834648,-546.18,0.00020545,2]
[365019240,1749403834658,-547.52,0.00020545,2]
[365019241,1749403834668,-440.0,0.00020545,2]
[365019242,1749403834678,-440.0,0.00020546,2]
[365019243,1749403834689,-440.0,0.00020546,2]
[365019244,1749403834700,-440.0,0.00020546,2]
[365019245,1749403834712,-746.72,0.00020546,2]
[365019246,1749403834723,-4941.08,0.00020546,2]
[365019247,1749403834734,-440.0,0.00020546,2]
[365019248,1749403834746,-440.0,0.00020546,2]
[365019249,1749403834758,-440.0,0.00020546,2]
[365019250,1749403834770,-440.0,0.00020546,2]
[365019251,1749403834782,-627.3,0.00020546,2]
[365019252,1749403834794,-440.0,0.00020546,2]
[365019253,1749403834816,-440.0,0.00020546,2]
[365019254,1749403834827,-440.0,0.00020546,2]
[365019255,1749403834842,-1000.0,0.00020662,2]
[365019256,1749403834855,-460.99,0.00020819,2]
[365019257,1749403834866,-460.57,0.00020819,2]
[365019258,1749403834877,-785.9,0.00020819,2]
[365019259,1749403834890,-572.52,0.00020819,2]
[365019260,1749403834902,-546.18,0.00020819,2]
[365019261,1749403834914,-547.52,0.00020819,2]
[365019262,1749403834925,-440.0,0.00020819,2]
[365019263,1749403834937,-440.0,0.0002082,2]
[365019264,1749403834949,-440.0,0.0002082,2]
[365019265,1749403834960,-440.0,0.0002082,2]
[365019266,1749403834972,-746.72,0.0002082,2]
[365019267,1749403834984,-4941.08,0.0002082,2]
[365019268,1749403834995,-440.0,0.0002082,2]
[365019269,1749403835007,-440.0,0.0002082,2]
[365019270,1749403835019,-440.0,0.0002082,2]
[365019271,1749403835030,-440.0,0.0002082,2]
[365019272,1749403835041,-627.3,0.0002082,2]
[365019273,1749403835052,-440.0,0.0002082,2]
[365019274,1749403835066,-440.0,0.0002082,2]
[365019275,1749403835076,-800.0,0.00020821,2]
[365019276,1749403835087,-547.85,0.000209,2]
[365019277,1749403835098,-160.0,0.00021093,2]
[365019278,1749403835108,-460.99,0.00021093,2]
[365019279,1749403835119,-460.57,0.00021093,2]
[365019280,1749403835130,-785.9,0.00021093,2]
[365019281,1749403835141,-572.52,0.00021093,2]
[365019282,1749403835151,-546.18,0.00021093,2]
[365019283,1749403835162,-547.52,0.00021093,2]
[365019284,1749403835172,-440.0,0.00021093,2]
[365019285,1749403835182,-440.0,0.00021094,2]
[365019286,1749403835192,-440.0,0.00021094,2]
[365019287,1749403835203,-167.52,0.00021094,2]
[365019288,1749403835212,-746.72,0.00021094,2]
[365019289,1749403835223,-4941.08,0.00021094,2]
[365019290,1749403835233,-440.0,0.00021094,2]
[365019291,1749403835243,-440.0,0.00021094,2]
[365019292,1749403835253,-440.0,0.00021094,2]
[365019293,1749403835263,-440.0,0.00021094,2]
[365019294,1749403835274,-627.3,0.00021094,2]
[365019295,1749403835284,-440.0,0.00021094,2]
[365019296,1749403835294,-440.0,0.00021094,2]
[365019297,1749403835304,-238.36753509,0.0002121,2]
[365019298,1749403835317,-460.99,0.00021367,2]
[365019299,1749403835327,-460.57,0.00021367,2]
[365019300,1749403835336,-785.9,0.00021367,2]
[365019301,1749403835347,-572.52,0.00021367,2]
[365019302,1749403835357,-546.18,0.00021367,2]
[365019303,1749403835367,-547.52,0.00021367,2]
[365019304,1749403835377,-440.0,0.00021367,2]
[365019305,1749403835387,-440.0,0.00021368,2]
[365019306,1749403835398,-440.0,0.00021368,2]
[365019307,1749403835408,-746.72,0.00021368,2]
[365019308,1749403835419,-4941.08,0.00021368,2]
[365019309,1749403835429,-440.0,0.00021368,2]
[365019310,1749403835441,-440.0,0.00021368,2]
[365019311,1749403835450,-440.0,0.00021368,2]
[365019312,1749403835460,-440.0,0.00021368,2]
[365019313,1749403835470,-627.3,0.00021368,2]
[365019314,1749403835480,-440.0,0.00021368,2]
[365019315,1749403835489,-440.0,0.00021368,2]
[365019316,1749403835499,-163.763152,0.00021404,2]
[365019317,1749403835508,-460.99,0.00021641,2]
[365019318,1749403835520,-460.57,0.00021641,2]
[365019319,1749403835529,-785.9,0.00021641,2]
[365019320,1749403835539,-572.52,0.00021641,2]
[365019321,1749403835549,-546.18,0.00021641,2]
[365019322,1749403835559,-547.52,0.00021641,2]
[365019323,1749403835569,-440.0,0.00021641,2]
[365019324,1749403835579,-255.93,0.00021642,2]
[365019325,1749403835588,-440.0,0.00021642,2]
[365019326,1749403835598,-746.72,0.00021642,2]
[365019327,1749403835607,-4941.08,0.00021642,2]
[365019328,1749403835617,-440.0,0.00021642,2]
[365019329,1749403835627,-440.0,0.00021642,2]
[365019330,1749403835637,-440.0,0.00021642,2]
[365019331,1749403835647,-440.0,0.00021642,2]
[365019332,1749403835657,-627.3,0.00021642,2]
[365019333,1749403835666,-440.0,0.00021642,2]
[365019334,1749403835676,-440.0,0.00021642,2]
[365019335,1749403835686,-176.08211657,0.00021778,2]
[365019336,1749403835696,-774.46,0.00021824,2]
[365019337,1749403835705,-164.63688717,0.0002191,2]
[365019338,1749403835715,-460.99,0.00021915,2]
[365019339,1749403835866,-460.57,0.00021915,2]
[365019340,1749403835895,-785.9,0.00021915,2]
[365019341,1749403835905,-572.52,0.00021915,2]
[365019342,1749403835915,-546.18,0.00021915,2]
[365019343,1749403835925,-547.52,0.00021915,2]
[365019344,1749403835935,-440.0,0.00021915,2]
[365019345,1749403835946,-440.0,0.00021916,2]
[365019346,1749403835956,-746.72,0.00021916,2]
[365019347,1749403835966,-4941.08,0.00021916,2]
[365019348,1749403835977,-440.0,0.00021916,2]
[365019349,1749403835987,-440.0,0.00021916,2]
[365019350,1749403835996,-440.0,0.00021916,2]
[365019351,1749403836006,-627.3,0.00021916,2]
[365019352,1749403836017,-440.0,0.00021916,2]
[365019353,1749403836027,-254.2969807,0.00021916,2]
[365019354,1749403836036,-800.0,0.00021917,2]
[365019355,1749403836047,-505.23537389,0.00021917,2]
[365019356,1749403836057,-774.46,0.00021924,6]
[365019357,1749403836066,-184.0,0.00022,2]
[365019358,1749403836077,-80960.62933716,0.00022,2]
[365019359,1749403836086,-386.53261844,0.00022,2]
[365019360,1749403836096,-183.0,0.00022,2]
[365019361,1749403836106,-774.46,0.00022024,6]
[365019362,1749403836115,-740.38,0.00022051,2]
[365019363,1749403836126,-774.46,0.00022124,6]
[365019364,1749403836136,-460.99,0.00022189,4]
[365019365,1749403836146,-460.57,0.00022189,4]
[365019366,1749403836156,-785.9,0.00022189,4]
[365019367,1749403836166,-572.52,0.00022189,4]
[365019368,1749403836175,-546.18,0.00022189,4]
[365019369,1749403836185,-547.52,0.00022189,4]
[365019370,1749403836194,-440.0,0.00022189,4]
[365019371,1749403836204,-240.06,0.0002219,4]
[365019372,1749403836214,-746.72,0.0002219,4]
[365019373,1749403836223,-4941.08,0.0002219,4]
[365019374,1749403836233,-440.0,0.0002219,4]
[365019375,1749403836244,-440.0,0.0002219,4]
[365019376,1749403836254,-440.0,0.0002219,4]
[365019377,1749403836264,-627.3,0.0002219,4]
[365019378,1749403836273,-440.0,0.0002219,4]
[365019379,1749403836283,-774.46,0.00022224,2]
[365019380,1749403836294,-774.46,0.00022324,4]
[365019381,1749403836304,-774.46,0.00022424,2]
[365019382,1749403836315,-282.9767101,0.00022456,2]
[365019383,1749403836325,-460.99,0.00022463,4]
[365019384,1749403836335,-460.57,0.00022463,4]
[365019385,1749403836345,-785.9,0.00022463,4]
[365019386,1749403836355,-572.52,0.00022463,4]
[365019387,1749403836365,-546.18,0.00022463,4]
[365019388,1749403836375,-547.52,0.00022463,4]
[365019389,1749403836385,-440.0,0.00022463,4]
[365019390,1749403836395,-746.72,0.00022464,4]
[365019391,1749403836404,-4941.08,0.00022464,4]
[365019392,1749403836414,-440.0,0.00022464,4]
[365019393,1749403836424,-440.0,0.00022464,4]
[365019394,1749403836434,-440.0,0.00022464,4]
[365019395,1749403836444,-627.3,0.00022464,4]
[365019396,1749403836454,-547.66306123,0.00022464,4]
[365019397,1749403836464,-547.85,0.000225,7]
[365019398,1749403836475,-151.0,0.00022524,2]
[365019399,1749403836486,-3169.13870365,0.00022524,2]
[365019408,1749403838362,-440.0,0.00019449,2]
[365019409,1749403838372,-251.3291471,0.00019723,2]
[365019410,1749403838383,-1830.86129635,0.00022524,2]
[365019411,1749403838392,-500.0,0.00022524,2]
[365019413,1749403838403,-1688.0,0.00022524,2]
[365019414,1749403838412,-3034.25905547,0.00022524,2]
[365019415,1749403838422,-500.0,0.00022524,2]
[365019416,1749403838432,-500.0,0.00022524,2]
[365019417,1749403838441,-207.4,0.00022524,2]
[365019418,1749403838451,-632.79567003,0.00022524,2]
[365019419,1749403838460,-800.0,0.00022524,2]
[365019420,1749403838470,-800.0,0.00022524,2]
[365019421,1749403838480,-800.0,0.00022524,2]
[365019422,1749403838490,-800.0,0.00022524,2]
[365019423,1749403838499,-800.0,0.00022524,2]
[365019424,1749403838509,-800.0,0.00022524,2]
[365019425,1749403838520,-800.0,0.00022524,2]
[365019426,1749403838531,-800.0,0.00022524,2]
[365019427,1749403838541,-800.0,0.00022524,2]
[365019428,1749403838550,-800.0,0.00022524,2]
[365019429,1749403838562,-800.0,0.00022524,2]
[365019430,1749403838572,-800.0,0.00022524,2]
[365019431,1749403838582,-800.0,0.00022524,2]
[365019432,1749403838592,-800.0,0.00022524,2]
[365019433,1749403838603,-800.0,0.00022524,2]
[365019434,1749403838613,-774.46,0.00022524,6]
[365019436,1749403838623,-153.0,0.00022573,2]
[365019437,1749403838632,-153.0,0.00022573,2]
[365019438,1749403838642,-1750.456,0.00022579,2]
[365019439,1749403838652,-28556.59890994,0.000226,7]
[365019440,1749403838664,-667.27857388,0.000226,7]
[365019441,1749403838677,-48881.72328121,0.000226,7]
[365019442,1749403838687,-774.46,0.00022624,6]
[365019443,1749403838697,-1815.222872,0.00022634,2]
[365019444,1749403838708,-67255.7995502,0.00022638,2]
[365019445,1749403838717,-150.0,0.00022664,30]
[365019446,1749403838727,-191.9244093,0.00022689,2]
[365019447,1749403838738,-774.46,0.00022724,4]
[365019448,1749403838748,-460.99,0.00022737,4]
[365019449,1749403838758,-460.57,0.00022737,4]
[365019450,1749403838768,-785.9,0.00022737,4]
[365019451,1749403838778,-572.52,0.00022737,4]
[365019452,1749403838787,-546.18,0.00022737,4]
[365019453,1749403838798,-547.52,0.00022737,4]
[365019454,1749403838808,-440.0,0.00022737,4]
[365019455,1749403838818,-746.72,0.00022738,4]
[365019456,1749403838828,-4941.08,0.00022738,4]
[365019457,1749403838837,-303.3835329,0.00022738,4]
[365019458,1749403838847,-440.0,0.00022738,4]
[365019459,1749403838856,-440.0,0.00022738,4]
[365019460,1749403838866,-627.3,0.00022738,4]
[365019461,1749403838876,-912.15993345,0.000228,3]
[365019462,1749403838886,-774.46,0.00022824,6]
[365019463,1749403838896,-774.46,0.00022924,2]
[365019464,1749403838907,-1040.795956,0.00022931,3]
[365019465,1749403838916,-32680.89933984,0.00023,2]
[365019466,1749403838926,-623.95390499,0.00023,2]
[365019467,1749403838935,-2142.65736396,0.00023,30]
[365019468,1749403838945,-151.0,0.00023,5]
[365019469,1749403838956,-460.99,0.00023011,4]
[365019470,1749403838965,-460.57,0.00023011,4]
[365019471,1749403838975,-785.9,0.00023011,4]
[365019472,1749403838985,-572.52,0.00023011,4]
[365019473,1749403838994,-546.18,0.00023011,4]
[365019474,1749403839004,-547.52,0.00023011,4]
[365019475,1749403839014,-413.43556232,0.00023011,4]
[365019476,1749403839024,-746.72,0.00023012,4]
[365019477,1749403839033,-4941.08,0.00023012,4]
[365019478,1749403839043,-440.0,0.00023012,4]
[365019479,1749403839053,-169.38639651,0.00023012,4]
[365019480,1749403839062,-627.3,0.00023012,4]
[365019481,1749403839072,-800.0,0.00023013,2]
[365019482,1749403839082,-774.46,0.00023024,7]
[365019483,1749403839092,-151.0,0.00023072,2]
[365019484,1749403839102,-5000.0,0.00023072,2]
[365019485,1749403839112,-774.46,0.00023124,7]
[365019486,1749403839121,-121411.59591787,0.00023166,2]
[365019487,1749403839131,-151.0,0.00023166,7]
[365019488,1749403839140,-151.0,0.00023166,7]
[365019489,1749403839150,-151.0,0.00023166,7]
[365019490,1749403839159,-151.0,0.00023166,7]
[365019491,1749403839169,-151.0,0.00023166,7]
[365019492,1749403839178,-151.0,0.00023166,7]
[365019493,1749403839187,-500.0,0.00023173,2]
[365019494,1749403839196,-14007.68168738,0.000232,5]
[365019495,1749403839206,-774.46,0.00023224,6]
[365019496,1749403839216,-500.0,0.00023273,2]
[365019497,1749403839226,-600.0,0.00023273,2]
[365019498,1749403839236,-500.0,0.00023273,2]
[365019499,1749403839246,-11458.32450207,0.00023285,2]
[365019500,1749403839257,-460.99,0.00023285,4]
[365019501,1749403839266,-460.57,0.00023285,4]
[365019502,1749403839276,-785.9,0.00023285,4]
[365019503,1749403839287,-572.52,0.00023285,4]
[365019504,1749403839299,-546.18,0.00023285,4]
[365019505,1749403839309,-547.52,0.00023285,4]
[365019506,1749403839319,-746.72,0.00023286,4]
[365019507,1749403839329,-4941.08,0.00023286,4]
[365019508,1749403839339,-273.27989831,0.00023286,4]
[365019509,1749403839348,-627.3,0.00023286,4]
[365019510,1749403839357,-179.29889563,0.0002329,4]
[365019511,1749403839367,-179.29889563,0.0002329,4]
[365019512,1749403839378,-179.29889563,0.0002329,4]
[365019513,1749403839389,-179.29889563,0.0002329,4]
[365019514,1749403839400,-179.29889563,0.0002329,4]
[365019515,1749403839411,-179.29889563,0.0002329,4]
[365019516,1749403839422,-179.29889563,0.0002329,4]
[365019517,1749403839433,-179.29889563,0.0002329,4]
[365019518,1749403839443,-179.29889563,0.0002329,4]
[365019519,1749403839453,-179.29889563,0.0002329,4]
[365019520,1749403839462,-179.29889563,0.0002329,4]
[365019521,1749403839471,-179.29889563,0.0002329,4]
[365019522,1749403839481,-179.29889563,0.0002329,4]
[365019523,1749403839490,-179.29889563,0.0002329,4]
[365019524,1749403839500,-179.29889563,0.0002329,4]
[365019525,1749403839510,-179.29889563,0.0002329,4]
[365019526,1749403839522,-179.29889563,0.0002329,4]
[365019527,1749403839532,-179.29889563,0.0002329,4]
[365019528,1749403839542,-179.29889563,0.0002329,4]
[365019529,1749403839552,-179.29,0.0002329,4]
[365019530,1749403839563,-418.36408981,0.0002329,4]
[365019531,1749403839572,-418.36408981,0.0002329,4]
[365019532,1749403839582,-418.36408981,0.0002329,4]
[365019533,1749403839592,-418.36408981,0.0002329,4]
[365019534,1749403839602,-418.36408981,0.0002329,4]
[365019535,1749403839612,-418.36408981,0.0002329,4]
[365019536,1749403839621,-418.36408981,0.0002329,4]
[365019537,1749403839631,-418.36408981,0.0002329,4]
[365019538,1749403839640,-418.36408981,0.0002329,4]
[365019539,1749403839649,-418.36408981,0.0002329,4]
[365019540,1749403839659,-418.36408981,0.0002329,4]
[365019541,1749403839668,-418.36408981,0.0002329,4]
[365019542,1749403839678,-418.36408981,0.0002329,4]
[365019543,1749403839687,-418.36408981,0.0002329,4]
[365019544,1749403839696,-418.36408981,0.0002329,4]
[365019545,1749403839705,-418.36408981,0.0002329,4]
[365019546,1749403839715,-418.36408981,0.0002329,4]
[365019547,1749403839724,-418.36408981,0.0002329,4]
[365019548,1749403839734,-418.36408981,0.0002329,4]
[365019549,1749403839743,-162.42010998,0.0002329,4]
[365019550,1749403839754,-162.42010998,0.0002329,4]
[365019551,1749403839763,-162.42010998,0.0002329,4]
[365019552,1749403839774,-162.42010998,0.0002329,4]
[365019553,1749403839785,-162.42010998,0.0002329,4]
[365019554,1749403839794,-162.42010998,0.0002329,4]
[365019555,1749403839804,-162.42010998,0.0002329,4]
[365019556,1749403839814,-162.42010998,0.0002329,4]
[365019557,1749403839823,-162.42010998,0.0002329,4]
[365019558,1749403839832,-162.42010998,0.0002329,4]
[365019559,1749403839842,-162.42010998,0.0002329,4]
[365019560,1749403839851,-162.42,0.0002329,4]
[365019561,1749403839860,-227.38815397,0.0002329,4]
[365019562,1749403839870,-227.38815397,0.0002329,4]
[365019563,1749403839880,-227.38815397,0.0002329,4]
[365019564,1749403839889,-227.38815397,0.0002329,4]
[365019565,1749403839900,-227.38815397,0.0002329,4]
[365019566,1749403839911,-227.38815397,0.0002329,4]
[365019567,1749403839921,-227.38815397,0.0002329,4]
[365019568,1749403839931,-227.38815397,0.0002329,4]
[365019569,1749403839941,-227.38815397,0.0002329,4]
[365019570,1749403839950,-227.38815397,0.0002329,4]
[365019571,1749403839959,-227.38815397,0.0002329,4]
[365019572,1749403839969,-227.38815397,0.0002329,4]
[365019573,1749403839979,-227.38815397,0.0002329,4]
[365019574,1749403839990,-227.38815397,0.0002329,4]
[365019576,1749403840000,-227.38815397,0.0002329,4]
[365019577,1749403840010,-227.38815397,0.0002329,4]
[365019578,1749403840019,-227.38815397,0.0002329,4]
[365019579,1749403840029,-227.38815397,0.0002329,4]
[365019580,1749403840040,-227.38815397,0.0002329,4]
[365019581,1749403840051,-293.04554437,0.0002329,4]
[365019582,1749403840061,-293.04554437,0.0002329,4]
[365019583,1749403840071,-293.04554437,0.0002329,4]
[365019584,1749403840080,-293.04554437,0.0002329,4]
[365019585,1749403840090,-293.04554437,0.0002329,4]
[365019586,1749403840100,-293.04554437,0.0002329,4]
[365019587,1749403840110,-293.04554437,0.0002329,4]
[365019588,1749403840120,-293.04554437,0.0002329,4]
[365019589,1749403840130,-293.04554437,0.0002329,4]
[365019590,1749403840140,-293.04554437,0.0002329,4]
[365019591,1749403840150,-293.04554437,0.0002329,4]
[365019592,1749403840172,-293.04554437,0.0002329,4]
[365019593,1749403840183,-293.04554437,0.0002329,4]
[365019594,1749403840195,-293.04554437,0.0002329,4]
[365019595,1749403840204,-293.04554437,0.0002329,4]
[365019596,1749403840215,-293.04554437,0.0002329,4]
[365019597,1749403840224,-293.04554437,0.0002329,4]
[365019598,1749403840234,-293.04554437,0.0002329,4]
[365019599,1749403840244,-293.04554437,0.0002329,4]
[365019600,1749403840254,-293.04,0.0002329,4]
[365019601,1749403840264,-683.77293686,0.0002329,4]
[365019602,1749403840274,-683.77293686,0.0002329,4]
[365019603,1749403840284,-683.77293686,0.0002329,4]
[365019604,1749403840294,-683.77293686,0.0002329,4]
[365019605,1749403840303,-683.77293686,0.0002329,4]
[365019606,1749403840313,-683.77293686,0.0002329,4]
[365019607,1749403840322,-683.77293686,0.0002329,4]
[365019608,1749403840332,-683.77293686,0.0002329,4]
[365019609,1749403840342,-683.77293686,0.0002329,4]
[365019610,1749403840352,-683.77293686,0.0002329,4]
[365019611,1749403840362,-683.77293686,0.0002329,4]
[365019612,1749403840371,-683.77293686,0.0002329,4]
[365019613,1749403840382,-683.77293686,0.0002329,4]
[365019614,1749403840392,-683.77293686,0.0002329,4]
[365019615,1749403840402,-683.77293686,0.0002329,4]
[365019616,1749403840412,-683.77293686,0.0002329,4]
[365019617,1749403840421,-683.77293686,0.0002329,4]
[365019618,1749403840431,-683.77293686,0.0002329,4]
[365019619,1749403840442,-683.77293686,0.0002329,4]
[365019620,1749403840453,-19319.30125508,0.000233,2]
[365019621,1749403840463,-3902.44619205,0.000233,2]
[365019622,1749403840472,-151.0,0.000233,7]
[365019623,1749403840482,-380002.68442795,0.000233,2]
[365019624,1749403840499,-100403.55140788,0.000233,2]
[365019625,1749403840509,-176.08211657,0.000233,2]
[365019626,1749403840522,-418.36,0.000233,4]
[365019627,1749403840695,-151.0,0.000233,7]
[365019628,1749403840706,-227.38,0.000233,4]
[365019629,1749403840717,-151.0,0.000233,7]
[365019630,1749403840732,-151.0,0.000233,7]
[365019631,1749403840742,-683.77,0.000233,4]
[365019632,1749403840752,-151.716069,0.000233,7]
[365019633,1749403840762,-151.0,0.000233,7]
[365019634,1749403840772,-2069.82086312,0.00023312,3]
[365019637,1749403840844,-437.22160403,0.00019723,2]
[365019638,1749403840854,-2107.77839601,0.00019723,2]
[365019639,1749403840875,-118.48010331,0.00019723,2]
[365019640,1749403840886,-2226.25849932,0.00019723,2]
[365019641,1749403840895,-2189.02612312,0.00019723,2]
[365019642,1749403840907,-37.2323762,0.00019723,2]
[365019643,1749403840918,-536.96432387,0.00019723,2]
[365019644,1749403840929,-554.59072756,0.00019723,2]
[365019714,1749403846685,-226.04,0.0001896,2]
[365019716,1749403846695,-262.23161379,0.00019723,2]
[365019717,1749403846708,-872.4718341,0.00019723,2]
[365019718,1749403846718,-2226.25849932,0.00019723,2]
[365019719,1749403846727,-1894.65008744,0.00019723,2]
[365019749,1749404552164,163.237204,0.00013699,2]
[365019780,1749405032705,-370.11249393,0.00018603,2]
[365019786,1749405038735,-3466.7201869,0.00018603,2]
[365019787,1749405038745,-275.47306553,0.000189,2]
[365019788,1749405038755,-300.0,0.00018999,2]
[365019789,1749405038764,-357.80675792,0.00018999,2]
[365019790,1749405038775,-842.19324208,0.00018999,2]
[365019791,1749405038785,-1297.80675792,0.00019,3]
[365019792,1749405038802,-8956.10813956,0.00019,3]
[365019793,1749405038812,-230.8,0.00019116,2]
[365019794,1749405038822,-535.9398668,0.00019445,2]
[365019795,1749405038831,-405.10432001,0.00019445,2]
[365019796,1749405038841,-440.0,0.00019446,2]
[365019797,1749405038850,-440.0,0.00019446,2]
[365019798,1749405038859,-440.0,0.00019446,2]
[365019799,1749405038868,-456.97,0.00019446,2]
[365019800,1749405038877,-440.0,0.00019446,2]
[365019801,1749405038887,-628.02,0.00019446,2]
[365019802,1749405038896,-430.0,0.00019446,2]
[365019803,1749405038906,-440.0,0.00019446,2]
[365019804,1749405038930,-430.0,0.00019446,2]
[365019805,1749405038942,-430.0,0.00019446,2]
[365019806,1749405038952,-440.0,0.00019446,2]
[365019807,1749405038963,-440.0,0.00019446,2]
[365019808,1749405038973,-440.0,0.00019446,2]
[365019809,1749405038983,-440.0,0.00019446,2]
[365019810,1749405038993,-457.39357246,0.00019446,2]
[365019811,1749405039003,-583.99,0.00019446,2]
[365019812,1749405039014,-477.68,0.00019446,2]
[365019813,1749405039024,-440.0,0.00019446,2]
[365019814,1749405039033,-440.0,0.00019446,2]
[365019815,1749405039046,-440.0,0.00019447,2]
[365019816,1749405039056,-439.37059374,0.00019447,2]
[365019817,1749405039066,-440.0,0.00019447,2]
[365019818,1749405039076,-440.0,0.00019447,2]
[365019819,1749405039086,-440.0,0.00019447,2]